fUSD/lending_fUSD_20250306
["ID","MTS","AMOUNT","RATE_DAILY","PERIOD"]
[355523200,1741236640467,-502.28144388,0.00011493,2]
[355523203,1741236640478,-501.34587272,0.00011493,2]
[355523205,1741236640491,-541.89,0.00011493,2]
[355523206,1741236640502,-500.0,0.00011493,2]
[355523208,1741236640511,-952.39,0.00011493,2]
[355523210,1741236640522,-848.27,0.00011493,2]
[355523212,1741236640538,-500.0,0.00011493,2]
[355523214,1741236640548,-1433.87,0.00011493,2]
[355523216,1741236640557,-1298.23,0.00011493,2]
[355523218,1741236640567,-500.0,0.00011493,2]
[355523220,1741236640576,-506.78,0.00011493,2]
[355523222,1741236640592,-4020.87,0.00011493,2]
[355523225,1741236640603,-500.0,0.00011493,2]
[355523226,1741236640612,-500.0,0.00011493,2]
[355523229,1741236640622,-608.54,0.00011493,2]
[355523231,1741236640632,-634.71,0.00011493,2]
[355523233,1741236640645,-1142.01,0.00011493,2]
[355523235,1741236640655,-500.0,0.00011493,2]
[355523237,1741236640664,-500.0,0.00011493,2]
[355523239,1741236640673,-543.38,0.00011493,2]
[355523241,1741236640682,-885.58,0.00011493,2]
[355523243,1741236640691,-1243.4,0.00011493,2]
[355523244,1741236640700,-500.0,0.00011493,2]
[355523246,1741236640710,-500.0,0.00011493,2]
[355523249,1741236640719,-500.0,0.00011493,2]
[355523251,1741236640729,-516.52629153,0.00011493,2]
[355523253,1741236640738,-500.0,0.00011493,2]
[355523255,1741236640747,-500.0,0.00011494,2]
[355523257,1741236640757,-160.009317,0.00011494,2]
[355523259,1741236640766,-940.29,0.00011494,2]
[355523261,1741236640775,-518.18,0.00011494,2]
[355523263,1741236640785,-500.0,0.00011494,2]
[355523264,1741236640794,-812.13,0.00011494,2]
[355523267,1741236640804,-500.0,0.00011494,2]
[355523268,1741236640813,-781.36,0.00011494,2]
[355523271,1741236640823,-1066.36,0.00011494,2]
[355523273,1741236640832,-753.87,0.00011494,2]
[355523275,1741236640841,-1148.89,0.00011494,2]
[355523277,1741236640850,-1405.55,0.00011494,2]
[355523279,1741236640859,-1602.64,0.00011494,2]
[355523281,1741236640869,-10272.22,0.00011494,2]
[355523283,1741236640879,-1040.62,0.00011494,2]
[355523285,1741236640888,-1883.84,0.00011494,2]
[355523287,1741236640897,-14025.18,0.00011494,2]
[355523289,1741236640907,-1744.03,0.00011494,2]
[355523291,1741236640916,-500.0,0.00011494,2]
[355523293,1741236640926,-1120.94,0.00011494,2]
[355523295,1741236640935,-2768.79,0.00011494,2]
[355523297,1741236640944,-1000.0,0.00011494,2]
[355523299,1741236640954,-2311.78,0.00011494,2]
[355523301,1741236640963,-1584.69,0.00011494,2]
[355523303,1741236640972,-890.31,0.00011494,2]
[355523322,1741236641142,-705.8,0.00011494,2]
[355523324,1741236641152,-500.0,0.00011495,2]
[355523326,1741236641161,-200.0,0.00011495,2]
[355523328,1741236641170,-500.0,0.00011495,2]
[355523330,1741236641179,-500.0,0.00011495,2]
[355523332,1741236641188,-500.0,0.00011495,2]
[355523334,1741236641199,-601.54,0.00011495,2]
[355523336,1741236641211,-500.0,0.00011495,2]
[355523338,1741236641220,-500.0,0.00011495,2]
[355523340,1741236641230,-500.0,0.00011495,2]
[355523342,1741236641239,-500.0,0.00011495,2]
[355523344,1741236641249,-500.0,0.00011495,2]
[355523346,1741236641259,-511.829,0.00011495,2]
[355523348,1741236641269,-651.32,0.00011495,2]
[355523350,1741236641279,-500.0,0.00011495,2]
[355523352,1741236641290,-500.0,0.00011495,2]
[355523354,1741236641299,-560.64,0.00011495,2]
[355523356,1741236641308,-500.0,0.00011495,2]
[355523358,1741236641317,-500.0,0.00011495,2]
[355523360,1741236641327,-508.40922962,0.00011495,2]
[355523362,1741236641336,-1081.09257,0.00011495,2]
[355523364,1741236641345,-166.0,0.00011495,3]
[355523366,1741236641355,-2035.785,0.00011495,2]
[355523368,1741236641364,-152.369,0.00011495,2]
[355523370,1741236641373,-3948.586,0.00011495,2]
[355523372,1741236641383,-58161.76158507,0.00011496,2]
[355523375,1741236641392,-2712.9,0.00011499,2]
[355523377,1741236641402,-500.0,0.00011499,2]
[355523378,1741236641412,-500.0,0.00011499,2]
[355523381,1741236641422,-500.0,0.00011499,2]
[355523383,1741236641431,-500.0,0.00011499,2]
[355523385,1741236641441,-500.0,0.00011499,2]
[355523387,1741236641450,-500.0,0.00011499,2]
[355523389,1741236641459,-500.0,0.00011499,2]
[355523391,1741236641468,-500.0,0.00011499,2]
[355523393,1741236641477,-620.22,0.00011499,2]
[355523395,1741236641486,-500.0,0.00011499,2]
[355523397,1741236641495,-1480.48,0.00011499,2]
[355523399,1741236641505,-4790.46,0.00011499,2]
[355523401,1741236641514,-1567.17,0.00011499,2]
[355523403,1741236641524,-1831.0,0.00011499,2]
[355523404,1741236641534,-832.61117251,0.00011499,3]
[355523407,1741236641543,-257774.20464268,0.000115,2]
[355523411,1741236641576,-500.0,0.0001141,2]
[355523413,1741236641585,-267.69248325,0.000115,2]
[355523511,1741236642607,-302.0670222,0.00011137,2]
[355523513,1741236642618,-197.9329778,0.00011137,2]
[355523515,1741236642627,-491.63445656,0.00011311,2]
[355523517,1741236642636,-81499.36210755,0.000115,2]
[355523519,1741236642647,-9257.21597449,0.000115,2]
[355523546,1741236642871,-424.5179383,0.00011014,2]
[355523548,1741236642881,-500.0,0.00011137,2]
[355523550,1741236642890,-184.74,0.00011411,2]
[355523551,1741236642899,-78.7804617,0.000115,2]
[355523567,1741236642979,-404.760008,0.000115,2]
[355523640,1741236643707,-620.35,0.00010959,2]
[355523642,1741236643717,-5755.45926892,0.000115,2]
[355523644,1741236643727,-50169.93082389,0.000115,2]
[355523889,1741236646219,-500.0,0.00011137,2]
[355523891,1741236646228,-500.0,0.00011411,2]
[355523893,1741236646237,-500.0,0.00011493,2]
[355523894,1741236646246,-1101.02,0.00011493,2]
[355523896,1741236646257,-165.24,0.00011493,2]
[355523898,1741236646266,-2761.00424231,0.000115,2]
[355523918,1741236646553,-715.29361049,0.000115,2]
[355523919,1741236646566,-12815.00978914,0.000115,2]
[355524999,1741236748133,500.0,0.0001018,2]
[355525001,1741236805506,800.0,9.084e-05,2]
[355525002,1741236875859,500.0,9.084e-05,2]
[355525003,1741237071631,5552.0,0.000102,5]
[355525004,1741237071902,5552.0,0.000101,3]
[355525005,1741237072419,223511.0,0.0001,2]
[355525006,1741237090538,1000.0,0.00010146,2]
[355525007,1741237480345,23900.0,0.00010243,2]
[355525008,1741237573082,164.6839839,9.988e-05,2]
[355525009,1741237576972,158.82,0.00010229,2]
[355525010,1741237712461,654.28,0.00010179,2]
[355525011,1741237744639,157.46,0.00010185,2]
[355525012,1741237750070,250.0,0.00010177,2]
[355525014,1741237829933,200.0,0.00010126,2]
[355525021,1741237832322,-304.77221282,0.00010354,2]
[355525022,1741237832332,-315.22778718,0.00010387,2]
[355525563,1741237838213,-333.1044,0.00010387,2]
[355525566,1741237838225,-351.66781282,0.00010387,2]
[355525568,1741237838235,-1000.0,0.00010432,2]
[355525569,1741237838244,-800.0,0.00010454,2]
[355525571,1741237838253,-159.88,0.00010486,2]
[355525574,1741237838264,-465.97218718,0.00010493,2]
[355525581,1741237838327,-714.48781282,0.00010493,2]
[355525583,1741237838336,-1000.0,0.00010525,2]
[355525585,1741237838346,-159.88,0.0001053,2]
[355525587,1741237838355,-171.31,0.0001054,2]
[355525589,1741237838364,-159.88,0.00010574,2]
[355525591,1741237838373,-159.88,0.00010619,2]
[355525593,1741237838383,-159.88,0.00010663,2]
[355525595,1741237838392,-159.88,0.00010707,2]
[355525597,1741237838401,-159.88,0.00010751,2]
[355525599,1741237838410,-159.88,0.00010795,2]
[355525601,1741237838419,-159.88,0.00010839,2]
[355525603,1741237838429,-6242.05630847,0.0001088,2]
[355525605,1741237838438,-159.88,0.00010883,2]
[355525607,1741237838447,-159.88,0.00010928,2]
[355525609,1741237838457,-159.88,0.00010972,2]
[355525610,1741237838467,-550.0,0.00011,2]
[355525611,1741237838477,-159.88,0.00011016,2]
[355525612,1741237838486,-433.55023486,0.00011039,2]
[355525613,1741237838496,-159.88,0.0001106,2]
[355525614,1741237838505,-159.88,0.00011104,2]
[355525615,1741237838515,-150.0,0.00011148,2]
[355525616,1741237838524,-159.88,0.00011148,2]
[355525617,1741237838534,-1000.0,0.00011167,2]
[355525618,1741237838544,-159.88,0.00011193,2]
[355525619,1741237838554,-164.96,0.000112,2]
[355525620,1741237838565,-159.88,0.00011237,2]
[355525622,1741237838574,-159.88,0.00011281,2]
[355525624,1741237838584,-3497.77977824,0.0001131,2]
[355525626,1741237838597,-610.32732176,0.0001131,2]
[355525628,1741237838609,-1000.0,0.00011319,2]
[355525630,1741237838618,-2215.46,0.00011319,2]
[355525632,1741237838627,-1518.66,0.00011319,2]
[355525634,1741237838637,-700.61865006,0.00011319,2]
[355525636,1741237838650,-152.60134994,0.00011319,2]
[355525638,1741237838660,-676.39,0.00011319,2]
[355525640,1741237838669,-500.0,0.00011319,2]
[355525642,1741237838679,-1418.8,0.00011319,2]
[355525644,1741237838688,-4590.86,0.00011319,2]
[355525646,1741237838698,-1501.87,0.00011319,2]
[355525648,1741237838707,-159.88,0.00011325,2]
[355525650,1741237838715,-500.0,0.0001134,2]
[355525652,1741237838724,-500.0,0.0001134,2]
[355525654,1741237838733,-500.0,0.0001134,2]
[355525655,1741237838743,-500.0,0.0001134,2]
[355525658,1741237838753,-500.0,0.0001134,2]
[355525660,1741237838763,-500.0,0.0001134,2]
[355525662,1741237838772,-500.0,0.0001134,2]
[355525664,1741237838782,-520.74,0.0001134,2]
[355525665,1741237838791,-500.0,0.0001134,2]
[355525668,1741237838800,-645.75,0.0001134,2]
[355525669,1741237838809,-83.87281666,0.0001134,2]
[355525844,1741237840483,-428.72718334,0.0001134,2]
[355525846,1741237840493,-372.6857626,0.0001134,2]
[355525848,1741237840504,-127.3142374,0.0001134,2]
[355525850,1741237840513,-243.72122265,0.0001134,2]
[355526165,1741237843533,-256.27877735,0.0001134,2]
[355526167,1741237843542,-500.0,0.0001134,2]
[355526169,1741237843551,-500.0,0.0001134,2]
[355526171,1741237843561,-500.0,0.0001134,2]
[355526173,1741237843570,-500.0,0.0001134,2]
[355526175,1741237843579,-500.0,0.0001134,2]
[355526177,1741237843588,-500.0,0.0001134,2]
[355526179,1741237843598,-500.0,0.0001134,2]
[355526181,1741237843609,-178.25784811,0.0001134,2]
[355526183,1741237843619,-500.0,0.0001134,2]
[355526185,1741237843628,-500.0,0.0001134,2]
[355526187,1741237843637,-500.0,0.0001134,2]
[355526189,1741237843647,-564.98,0.0001134,2]
[355526191,1741237843657,-500.0,0.0001134,2]
[355526193,1741237843666,-500.0,0.0001134,2]
[355526195,1741237843675,-500.0,0.0001134,2]
[355526197,1741237843686,-500.0,0.0001134,2]
[355526199,1741237843696,-500.0,0.0001134,2]
[355526201,1741237843705,-500.0,0.0001134,2]
[355526203,1741237843714,-500.0,0.0001134,2]
[355526205,1741237843722,-500.0,0.0001134,2]
[355526207,1741237843731,-500.0,0.0001134,2]
[355526209,1741237843741,-500.0,0.0001134,2]
[355526211,1741237843749,-500.0,0.0001134,2]
[355526213,1741237843758,-500.0,0.0001134,2]
[355526215,1741237843767,-500.0,0.0001134,2]
[355526217,1741237843776,-500.0,0.0001134,2]
[355526219,1741237843785,-513.51,0.0001134,2]
[355526221,1741237843794,-500.0,0.0001134,2]
[355526223,1741237843803,-500.0,0.0001134,2]
[355526224,1741237843814,-500.0,0.0001134,2]
[355526226,1741237843823,-520.32,0.0001134,2]
[355526228,1741237843833,-633.55,0.0001134,2]
[355526230,1741237843842,-500.0,0.0001134,2]
[355526232,1741237843851,-500.0,0.0001134,2]
[355526234,1741237843861,-886.67,0.0001134,2]
[355526236,1741237843870,-833.33,0.0001134,2]
[355526238,1741237843879,-720.08,0.0001134,2]
[355526240,1741237843888,-500.0,0.0001134,2]
[355526242,1741237843898,-500.0,0.0001134,2]
[355526244,1741237843907,-500.0,0.0001134,2]
[355526246,1741237843916,-500.0,0.0001134,2]
[355526248,1741237843925,-500.0,0.0001134,2]
[355526250,1741237843934,-500.0,0.0001134,2]
[355526252,1741237843943,-500.0,0.0001134,2]
[355526254,1741237843952,-500.0,0.0001134,2]
[355526256,1741237843961,-500.0,0.0001134,2]
[355526258,1741237843971,-500.0,0.0001134,2]
[355526260,1741237843980,-500.0,0.0001134,2]
[355526262,1741237843989,-500.0,0.0001134,2]
[355526264,1741237843999,-771.03002835,0.0001136,2]
[355526266,1741237844008,-771.03002835,0.0001137,2]
[355526268,1741237844017,-771.03002835,0.0001138,2]
[355526270,1741237844027,-771.03002835,0.0001139,2]
[355526272,1741237844036,-900.91047,0.0001139,2]
[355526274,1741237844045,-1000.0,0.00011397,2]
[355526276,1741237844054,-178.63302802,0.000114,2]
[355526278,1741237844064,-771.03002835,0.000114,2]
[355526280,1741237844073,-5957.94257598,0.000114,2]
[355526282,1741237844082,-247.66677733,0.000114,2]
[355526284,1741237844091,-169.0120017,0.000114,2]
[355526286,1741237844100,-1671.81651712,0.000114,2]
[355526288,1741237844109,-171.31,0.0001141,2]
[355526290,1741237844118,-500.0,0.0001141,2]
[355526292,1741237844128,-500.0,0.0001141,2]
[355526294,1741237844137,-500.0,0.0001141,2]
[355526296,1741237844146,-500.0,0.0001141,2]
[355526298,1741237844155,-500.0,0.0001141,2]
[355526300,1741237844164,-500.0,0.0001141,2]
[355526302,1741237844173,-1123.38,0.0001141,2]
[355526304,1741237844182,-500.0,0.0001141,2]
[355526305,1741237844191,-500.0,0.0001141,2]
[355526306,1741237844200,-500.0,0.0001141,2]
[355526307,1741237844209,-576.3,0.0001141,2]
[355526308,1741237844218,-530.3,0.0001141,2]
[355526309,1741237844226,-500.0,0.0001141,2]
[355526310,1741237844235,-500.0,0.0001141,2]
[355526311,1741237844245,-500.0,0.0001141,2]
[355526312,1741237844253,-558.54299485,0.0001141,2]
[355526313,1741237844262,-500.0,0.0001141,2]
[355526314,1741237844271,-500.0,0.0001141,2]
[355526315,1741237844280,-500.0,0.0001141,2]
[355526317,1741237844289,-500.0,0.0001141,2]
[355526319,1741237844299,-500.0,0.0001141,2]
[355526321,1741237844308,-500.0,0.0001141,2]
[355526323,1741237844317,-500.0,0.0001141,2]
[355526325,1741237844327,-500.0,0.0001141,2]
[355526327,1741237844337,-500.0,0.0001141,2]
[355526329,1741237844346,-500.0,0.0001141,2]
[355526331,1741237844355,-500.0,0.0001141,2]
[355526333,1741237844364,-500.0,0.0001141,2]
[355526335,1741237844374,-500.0,0.0001141,2]
[355526337,1741237844383,-377.53008507,0.0001141,2]
[355526339,1741237844392,-500.0,0.0001141,2]
[355526341,1741237844401,-500.0,0.0001141,2]
[355526343,1741237844411,-500.0,0.0001141,2]
[355526345,1741237844420,-500.0,0.0001141,2]
[355526347,1741237844429,-500.0,0.0001141,2]
[355526349,1741237844439,-500.0,0.0001141,2]
[355526351,1741237844448,-500.0,0.0001141,2]
[355526353,1741237844457,-500.0,0.0001141,2]
[355526355,1741237844467,-500.0,0.0001141,2]
[355526357,1741237844476,-546.37426023,0.0001141,2]
[355526359,1741237844485,-500.0,0.0001141,2]
[355526361,1741237844495,-500.0,0.0001141,2]
[355526363,1741237844504,-500.0,0.0001141,2]
[355526365,1741237844513,-500.0,0.0001141,2]
[355526367,1741237844522,-500.0,0.0001141,2]
[355526368,1741237844531,-500.0,0.0001141,2]
[355526370,1741237844540,-529.40768617,0.0001141,2]
[355526372,1741237844549,-500.0,0.0001141,2]
[355526374,1741237844559,-500.0,0.0001141,2]
[355526376,1741237844568,-500.0,0.0001141,2]
[355526378,1741237844577,-500.0,0.0001141,2]
[355526380,1741237844586,-500.0,0.0001141,2]
[355526382,1741237844595,-500.0,0.0001141,2]
[355526384,1741237844605,-251.75019516,0.0001141,2]
[355526562,1741237846376,-500.0,0.0001134,2]
[355526564,1741237846386,-248.24980484,0.0001141,2]
[355526566,1741237846395,-500.0,0.0001141,2]
[355526568,1741237846404,-618.58,0.0001141,2]
[355526570,1741237846414,-500.0,0.0001141,2]
[355526572,1741237846423,-500.0,0.0001141,2]
[355526574,1741237846432,-500.0,0.0001141,2]
[355526576,1741237846441,-500.0,0.0001141,2]
[355526578,1741237846451,-500.0,0.0001141,2]
[355526580,1741237846461,-500.0,0.0001141,2]
[355526582,1741237846470,-261.04160457,0.0001141,2]
[355526584,1741237846481,-5.41740743,0.0001141,2]
[355526586,1741237846491,-500.0,0.0001141,2]
[355526588,1741237846502,-500.0,0.0001141,2]
[355526590,1741237846511,-515.07376051,0.0001141,2]
[355526592,1741237846521,-500.0,0.0001141,2]
[355526594,1741237846530,-500.0,0.0001141,2]
[355526596,1741237846540,-1000.0,0.00011414,2]
[355526598,1741237846549,-157.46,0.00011458,2]
[355526601,1741237846559,-1174.035,0.00011479,2]
[355526602,1741237846569,-188.453,0.00011479,2]
[355526604,1741237846578,-453.02064575,0.0001149,2]
[355526606,1741237846588,-453.02064575,0.0001149,2]
[355526608,1741237846598,-528.98,0.00011493,2]
[355526610,1741237846608,-500.0,0.00011493,2]
[355526612,1741237846620,-500.0,0.00011493,2]
[355526614,1741237846629,-500.0,0.00011493,2]
[355526616,1741237846639,-500.0,0.00011493,2]
[355526618,1741237846649,-500.0,0.00011493,2]
[355526620,1741237846659,-254.13954056,0.00011493,2]
[355526623,1741237846675,-245.86045944,0.00011493,2]
[355526625,1741237846685,-159.1617487,0.00011493,2]
[355526628,1741237846702,-340.8382513,0.00011493,2]
[355526630,1741237846711,-576.47,0.00011493,2]
[355526632,1741237846720,-500.0,0.00011493,2]
[355526634,1741237846729,-595.13,0.00011493,2]
[355526636,1741237846738,-500.0,0.00011493,2]
[355526638,1741237846748,-500.0,0.00011493,2]
[355526640,1741237846757,-500.0,0.00011493,2]
[355526642,1741237846766,-624.18,0.00011493,2]
[355526644,1741237846777,-500.0,0.00011493,2]
[355526646,1741237846788,-500.0,0.00011493,2]
[355526648,1741237846797,-537.28,0.00011493,2]
[355526650,1741237846806,-500.0,0.00011493,2]
[355526652,1741237846815,-500.0,0.00011493,2]
[355526654,1741237846824,-1523.007405,0.00011497,2]
[355526656,1741237846833,-708.43,0.00011497,2]
[355526659,1741237846843,-500.0,0.00011497,2]
[355526662,1741237846853,-1626.3,0.00011497,2]
[355526664,1741237846862,-6995.41,0.00011497,2]
[355526666,1741237846874,-1142.35,0.00011497,2]
[355526668,1741237846883,-995.031442,0.00011497,2]
[355526670,1741237846892,-1644.83,0.00011497,2]
[355526672,1741237846901,-1183.69,0.00011497,2]
[355526674,1741237846909,-594.55,0.00011497,2]
[355526676,1741237846918,-716.45,0.00011497,2]
[355526678,1741237846927,-2581.77,0.00011497,2]
[355526679,1741237846935,-500.0,0.00011497,2]
[355526681,1741237846944,-1183.9,0.00011497,2]
[355526684,1741237846955,-500.0,0.00011497,2]
[355526686,1741237846963,-940.05,0.00011497,2]
[355526688,1741237846972,-956.34,0.00011497,2]
[355526689,1741237846981,-878.36,0.00011497,2]
[355526692,1741237846990,-689.86,0.00011497,2]
[355526694,1741237847001,-970.27,0.00011497,2]
[355526695,1741237847010,-1043.02,0.00011497,2]
[355526698,1741237847020,-587.8,0.00011497,2]
[355526700,1741237847029,-629.24,0.00011497,2]
[355526702,1741237847039,-518.71,0.00011497,2]
[355526704,1741237847048,-727.91,0.00011497,2]
[355526706,1741237847057,-631.4,0.00011497,2]
[355526707,1741237847066,-1008.9,0.00011497,2]
[355526710,1741237847076,-1449.27,0.00011497,2]
[355526712,1741237847085,-913.28,0.00011497,2]
[355526714,1741237847094,-998.81,0.00011497,2]
[355526716,1741237847104,-1164.85,0.00011497,2]
[355526718,1741237847113,-792.54,0.00011497,2]
[355526719,1741237847122,-821.47,0.00011497,2]
[355526721,1741237847131,-500.0,0.00011497,2]
[355526723,1741237847141,-1385.14,0.00011497,2]
[355526725,1741237847150,-983.22,0.00011497,2]
[355526728,1741237847160,-4062.22,0.00011497,2]
[355526730,1741237847169,-3114.22,0.00011497,2]
[355526731,1741237847178,-646.31,0.00011497,2]
[355526733,1741237847187,-798.06,0.00011497,2]
[355526735,1741237847196,-500.0,0.00011497,2]
[355526738,1741237847205,-882.93,0.00011497,2]
[355526740,1741237847215,-576.14,0.00011497,2]
[355526742,1741237847224,-672.93,0.00011497,2]
[355526744,1741237847234,-500.0,0.00011497,2]
[355526746,1741237847243,-3412.65,0.00011497,2]
[355526747,1741237847254,-500.0,0.00011497,2]
[355526748,1741237847263,-6237.0,0.00011497,2]
[355526749,1741237847272,-500.0,0.00011497,2]
[355526750,1741237847281,-500.0,0.00011497,2]
[355526751,1741237847290,-771.14,0.00011497,2]
[355526752,1741237847299,-500.0,0.00011497,2]
[355526753,1741237847307,-1240.18,0.00011497,2]
[355526754,1741237847316,-462.75176364,0.00011498,2]
[355526755,1741237847326,-430.31981955,0.00011498,2]
[355526756,1741237847335,-500.0,0.00011498,2]
[355526758,1741237847344,-325.15,0.00011498,2]
[355526760,1741237847353,-733.11,0.00011498,2]
[355526762,1741237847363,-630.79,0.00011498,2]
[355526764,1741237847372,-506.02327987,0.00011498,2]
[355526766,1741237847381,-384.81496852,0.00011498,2]
[355526768,1741237847391,-500.0,0.00011498,2]
[355526770,1741237847400,-500.0,0.00011498,2]
[355526772,1741237847409,-500.0,0.00011498,2]
[355526773,1741237847418,-500.0,0.00011498,2]
[355526775,1741237847427,-500.0,0.00011498,2]
[355526777,1741237847436,-500.0,0.00011498,2]
[355526779,1741237847445,-500.0,0.00011498,2]
[355526781,1741237847453,-500.0,0.00011498,2]
[355526783,1741237847462,-500.0,0.00011498,2]
[355526785,1741237847472,-500.0,0.00011498,2]
[355526787,1741237847481,-500.0,0.00011498,2]
[355526789,1741237847490,-576.49,0.00011498,2]
[355526791,1741237847500,-206.56,0.00011498,2]
[355526793,1741237847509,-500.0,0.00011498,2]
[355526795,1741237847519,-500.0,0.00011498,2]
[355526797,1741237847528,-501.0,0.00011498,2]
[355526799,1741237847537,-500.0,0.00011498,2]
[355526801,1741237847547,-510.71863568,0.00011498,2]
[355526803,1741237847556,-500.0,0.00011498,2]
[355526805,1741237847565,-516.37595495,0.00011498,2]
[355526807,1741237847575,-500.0,0.00011498,2]
[355526809,1741237847584,-500.0,0.00011498,2]
[355526811,1741237847594,-500.0,0.00011498,2]
[355526813,1741237847604,-500.0,0.00011498,2]
[355526815,1741237847616,-500.0,0.00011498,2]
[355526817,1741237847626,-500.0,0.00011498,2]
[355526819,1741237847637,-500.0,0.00011498,2]
[355526821,1741237847647,-500.0,0.00011498,2]
[355526823,1741237847656,-500.0,0.00011498,2]
[355526825,1741237847666,-500.0,0.00011498,2]
[355526827,1741237847675,-247.37,0.00011498,2]
[355526829,1741237847685,-500.0,0.00011498,2]
[355526831,1741237847695,-657.53,0.00011498,2]
[355526833,1741237847706,-500.0,0.00011498,2]
[355526835,1741237847715,-500.0,0.00011498,2]
[355526837,1741237847724,-368.07,0.00011498,2]
[355526839,1741237847734,-457.44,0.00011498,2]
[355526841,1741237847743,-537.13,0.00011498,2]
[355526843,1741237847754,-500.0,0.00011498,2]
[355526845,1741237847764,-266.13,0.00011498,2]
[355526847,1741237847774,-500.0,0.00011498,2]
[355526849,1741237847783,-500.0,0.00011498,2]
[355526851,1741237847792,-500.0,0.00011498,2]
[355526853,1741237847802,-500.0,0.00011498,2]
[355526855,1741237847813,-500.0,0.00011498,2]
[355526857,1741237847822,-500.0,0.00011498,2]
[355526859,1741237847831,-500.0,0.00011498,2]
[355526861,1741237847840,-161.32,0.00011498,2]
[355526863,1741237847849,-500.0,0.00011498,2]
[355526865,1741237847858,-643.43,0.00011498,2]
[355526867,1741237847868,-500.0,0.00011498,2]
[355526869,1741237847878,-384.39,0.00011498,2]
[355526871,1741237847887,-500.0,0.00011498,2]
[355526873,1741237847897,-208.86985379,0.00011498,2]
[355526875,1741237847905,-500.0,0.00011498,2]
[355526877,1741237847915,-500.0,0.00011498,2]
[355526879,1741237847924,-560.01,0.00011498,2]
[355526881,1741237847933,-500.0,0.00011498,2]
[355526883,1741237847942,-500.0,0.00011498,2]
[355526885,1741237847951,-500.0,0.00011498,2]
[355526887,1741237847961,-669.39,0.00011498,2]
[355526889,1741237847971,-500.0,0.00011498,2]
[355526891,1741237847980,-210.99808726,0.00011498,2]
[355526892,1741237847990,-558.25,0.00011498,2]
[355526894,1741237848001,-500.0,0.00011498,2]
[355526895,1741237848011,-500.0,0.00011498,2]
[355526897,1741237848020,-500.0,0.00011498,2]
[355526898,1741237848030,-500.0,0.00011498,2]
[355526900,1741237848039,-500.0,0.00011498,2]
[355526901,1741237848049,-500.0,0.00011498,2]
[355526903,1741237848058,-670.23,0.00011498,2]
[355526904,1741237848067,-500.0,0.00011498,2]
[355526906,1741237848077,-500.0,0.00011498,2]
[355526907,1741237848087,-2726.22,0.00011498,2]
[355526909,1741237848097,-889.57,0.00011498,2]
[355526910,1741237848106,-280.97171031,0.00011498,2]
[355526912,1741237848117,-500.0,0.00011498,2]
[355526914,1741237848126,-830.84,0.00011498,2]
[355526915,1741237848135,-2842.64,0.00011498,2]
[355526917,1741237848145,-500.0,0.00011498,2]
[355526918,1741237848155,-500.0,0.00011498,2]
[355526920,1741237848165,-3144.37,0.00011498,2]